bitfinex/quotes_BTCUSD_20220105
["timestamp","ask_amount","ask_price","bid_price","bid_amount"]
[1641421412686,0.015,43214.0,43212.0,0.64139224]
[1641421412888,0.0604259,43230.0,43213.0,0.00128375]
[1641421412889,0.2499,43226.0,43213.0,0.00128375]
[1641421413089,0.00666031,43243.0,43225.0,0.00123767]
[1641421413288,0.01359399,43230.0,43225.0,0.00123767]
[1641421413726,0.21816233,43222.0,43215.0,0.1157221]
[1641421413927,0.21816233,43222.0,43221.0,0.00128553]
[1641421414229,0.21816233,43222.0,43221.0,0.00127389]
[1641421414424,0.21816233,43222.0,43221.0,0.32434456]
[1641421414625,0.21816233,43222.0,43221.0,0.00127389]
[1641421416033,0.21791629,43222.0,43221.0,0.00127389]
[1641421416232,0.22991543,43222.0,43221.0,0.00127389]
[1641421416629,0.22991543,43222.0,43221.0,0.27869847]
[1641421416833,0.22991543,43222.0,43221.0,0.73669847]
[1641421417033,0.15167674,43222.0,43221.0,0.73669847]
[1641421417276,0.2499,43237.0,43221.0,0.88669847]
[1641421417472,0.4870882,43249.0,43221.0,0.88669847]
[1641421417473,0.40498938,43245.0,43228.0,0.00121133]
[1641421417773,0.2499,43245.0,43240.0,0.45365305]
[1641421417976,0.3499,43245.0,43241.0,0.51872942]
[1641421418174,0.009,43242.0,43241.0,1.0386518]
[1641421418376,0.009,43242.0,43241.0,1.03988745]
[1641421419378,0.20025827,43258.0,43241.0,1.41187045]
[1641421419577,0.0650621,43258.0,43252.0,0.32800529]
[1641421419778,0.2499,43260.0,43252.0,0.32800529]
[1641421419984,0.2,43266.0,43259.0,0.00125805]
[1641421420187,0.4378,43283.0,43259.0,0.00125805]
[1641421420188,0.64427822,43280.0,43267.0,0.62236228]
[1641421420383,0.4378,43283.0,43270.0,0.00127141]
[1641421420384,0.15,43275.0,43270.0,0.00127141]
[1641421420679,0.14,43275.0,43274.0,0.00128611]
[1641421420932,0.5777,43283.0,43274.0,0.00128611]
[1641421421131,0.5777,43283.0,43274.0,0.29432477]
[1641421421334,0.5777,43283.0,43277.0,0.61583748]
[1641421421634,0.01359176,43287.0,43282.0,0.00125591]
[1641421421833,0.13516025,43299.0,43283.0,0.371983]
[1641421422039,0.0053902,43301.0,43277.0,0.61583748]
[1641421422040,0.0053902,43301.0,43286.0,0.00122418]
[1641421422230,0.11082132,43312.0,43286.0,0.26417318]
[1641421422231,0.009,43287.0,43286.0,0.26417318]
[1641421422432,0.009,43287.0,43286.0,0.91094793]
[1641421422733,0.004,43287.0,43286.0,1.35610351]
[1641421423334,0.115529,43309.0,43286.0,1.35610351]
[1641421423536,0.115529,43309.0,43296.0,0.30158525]
[1641421424139,0.118529,43309.0,43296.0,0.30258525]
[1641421424337,0.003,43309.0,43308.0,0.40518341]
[1641421424545,0.56476944,43309.0,43308.0,0.00124469]
[1641421424778,0.05051052,43312.0,43308.0,0.00124146]
[1641421425382,0.05051052,43312.0,43311.0,0.00127117]
[1641421425978,0.05051052,43312.0,43309.0,0.45899968]
[1641421426181,0.05551052,43312.0,43311.0,0.001]
[1641421426777,0.59585286,43312.0,43311.0,0.001]
[1641421427378,0.59585286,43312.0,43308.0,0.05]
[1641421427577,0.59085286,43312.0,43308.0,0.05]
[1641421427783,0.59085286,43312.0,43304.0,0.01491673]
[1641421427978,0.59085286,43312.0,43306.0,0.41623751]
[1641421428179,0.59585286,43312.0,43306.0,0.41623751]
[1641421428437,0.59585286,43312.0,43304.0,0.01489624]
[1641421428638,0.63393901,43305.0,43304.0,0.01368273]
[1641421429236,0.67893901,43305.0,43304.0,0.01368273]
[1641421429436,0.82893901,43305.0,43304.0,0.01368273]
[1641421429643,0.82893901,43305.0,43282.0,0.42733638]
[1641421429644,0.15,43305.0,43282.0,0.42733638]
[1641421429845,0.0001,43290.0,43286.0,0.32279465]
[1641421430041,0.0001,43290.0,43287.0,0.371983]
[1641421430242,0.2499,43308.0,43293.0,0.00123355]
[1641421430243,0.23,43305.0,43293.0,0.00123355]
[1641421430442,0.23,43305.0,43299.0,0.00128331]
[1641421430642,0.23,43305.0,43304.0,0.45262148]
[1641421430838,0.23,43305.0,43298.0,0.28882137]
[1641421431038,0.23,43305.0,43291.0,0.00124756]
[1641421431244,0.09725831,43305.0,43291.0,0.00124756]
[1641421431447,0.52220752,43304.0,43285.0,0.0012084]
[1641421431640,0.67742489,43304.0,43285.0,0.0012084]
[1641421431845,0.66198721,43289.0,43286.0,0.40727033]
[1641421432041,0.66198721,43289.0,43286.0,0.70296544]
[1641421432282,0.057778,43295.0,43286.0,0.70296544]
[1641421432683,0.2496,43301.0,43286.0,0.69796544]
[1641421432980,0.2496,43301.0,43286.0,0.69923022]
[1641421433181,0.52645073,43299.0,43294.0,0.39989592]
[1641421433581,0.52645073,43299.0,43286.0,0.79035434]
[1641421433582,0.05,43298.0,43286.0,0.79035434]
[1641421433881,0.2496,43301.0,43287.0,0.35436596]
[1641421434080,0.2496,43301.0,43287.0,0.0005245]
[1641421434280,0.006,43298.0,43287.0,0.0005245]
[1641421434482,0.006,43298.0,43288.0,0.44447464]
[1641421434980,0.006,43298.0,43287.0,0.0005245]
[1641421435185,0.056,43298.0,43287.0,0.0005245]
[1641421435382,0.05,43298.0,43287.0,0.0005245]
[1641421435582,0.00128024,43304.0,43287.0,0.0005245]
[1641421435583,0.05904724,43304.0,43287.0,0.0005245]
[1641421435783,0.2496,43303.0,43292.0,0.00127565]
[1641421436029,0.2496,43303.0,43287.0,0.0005245]
[1641421436230,0.2496,43303.0,43287.0,0.0015245]
[1641421436231,0.37325236,43302.0,43287.0,0.0015245]
[1641421436430,0.37446366,43302.0,43287.0,0.0015245]
[1641421436631,0.47446366,43302.0,43291.0,0.39908626]
[1641421436832,0.1012113,43302.0,43293.0,0.25661196]
[1641421437033,0.1,43302.0,43296.0,0.00125616]
[1641421437233,0.002,43304.0,43296.0,0.00125616]
[1641421437531,0.05776,43309.0,43296.0,0.00125616]
[1641421437739,0.05776,43309.0,43302.0,0.9534458]
[1641421438331,0.06176,43309.0,43302.0,0.9534458]
[1641421438733,0.06176,43309.0,43302.0,0.40961375]
[1641421439138,0.004,43309.0,43303.0,0.00010934]
[1641421439534,0.05051052,43312.0,43309.0,0.34934375]
[1641421440293,0.0021,43310.0,43309.0,0.32373332]
[1641421440889,0.3815525,43328.0,43310.0,0.371983]
[1641421441087,0.0001,43330.0,43319.0,0.00120206]
[1641421441288,0.0001,43320.0,43319.0,0.00120206]
[1641421441486,0.0001,43320.0,43319.0,0.00062206]
[1641421441684,0.0001,43320.0,43319.0,0.38746352]
[1641421441888,0.0001,43330.0,43320.0,0.371983]
[1641421442086,0.0001,43330.0,43321.0,0.34948242]
[1641421442286,0.0001,43330.0,43328.0,0.33339714]
[1641421442486,0.0001,43330.0,43325.0,0.00127221]
[1641421443087,0.0001,43330.0,43328.0,0.43972696]
[1641421444227,0.0001,43330.0,43329.0,0.371983]
[1641421444429,0.0031,43330.0,43329.0,0.37326892]
[1641421444625,0.0031,43330.0,43329.0,0.37375893]
[1641421444829,0.0001,43340.0,43329.0,0.37375893]
[1641421445026,0.0001,43340.0,43337.0,0.00127737]
[1641421445626,0.0001,43340.0,43338.0,0.26015948]
[1641421445830,0.0001,43340.0,43339.0,0.85318545]
[1641421446827,0.0001,43340.0,43339.0,0.83318545]
[1641421447682,0.0001,43340.0,43339.0,1.20516845]
[1641421447879,0.2001,43340.0,43339.0,1.20516845]
[1641421448081,0.2001,43340.0,43339.0,0.83318545]
[1641421448278,0.2001,43340.0,43339.0,0.36088356]
[1641421448479,0.2001,43340.0,43329.0,0.00049001]
[1641421448679,0.057717,43335.0,43329.0,0.00049001]
[1641421448878,0.4001,43340.0,43330.0,0.371983]
[1641421449077,0.4001,43340.0,43329.0,0.2505965]
[1641421449078,0.4013782,43340.0,43329.0,0.2505965]
[1641421449282,0.115443,43336.0,43329.0,0.2505965]
[1641421449477,0.115443,43336.0,43335.0,0.38891126]
[1641421450281,0.119443,43336.0,43335.0,0.39091126]
[1641421450477,0.119443,43336.0,43335.0,0.90559636]
[1641421450681,0.004,43336.0,43335.0,1.27757936]
[1641421450922,0.4001,43340.0,43336.0,0.366983]
[1641421451122,0.2618,43340.0,43337.0,0.24973132]
[1641421451328,0.2618,43340.0,43335.0,0.00326882]
[1641421451528,0.005189,43339.0,43335.0,0.002]
[1641421451724,0.005189,43339.0,43329.0,0.00049001]
[1641421451725,0.057712,43337.0,43329.0,0.00049001]
[1641421451924,0.115464,43334.0,43329.0,0.00049001]
[1641421452124,0.005189,43333.0,43314.0,0.00121512]
[1641421452330,0.00124933,43335.0,43329.0,0.003]
[1641421452523,0.58584528,43331.0,43329.0,0.003]
[1641421452724,0.00129152,43329.0,43328.0,0.42709201]
[1641421453227,0.00129152,43329.0,43328.0,0.33000522]
[1641421453923,0.173201,43330.0,43328.0,0.70086622]
[1641421454122,0.057717,43331.0,43329.0,0.370861]
[1641421454525,0.2,43329.0,43321.0,0.01363555]
[1641421454794,0.30123383,43322.0,43321.0,3.555e-05]
[1641421454994,1.63942484,43322.0,43300.0,0.0003]
[1641421455191,0.057764,43311.0,43310.0,0.00010924]
[1641421455392,1.94829551,43311.0,43310.0,0.00010924]
[1641421455592,0.005189,43307.0,43296.0,0.34948242]
[1641421455795,2.08655032,43311.0,43291.0,0.00011]
[1641421455796,0.2,43302.0,43291.0,0.00011]
[1641421455995,0.25,43300.0,43281.0,0.00011]
[1641421456192,0.057795,43294.0,43283.0,0.00011]
[1641421456391,0.005189,43290.0,43283.0,0.00011]
[1641421456591,0.1443294,43293.0,43282.0,0.00011]
[1641421456592,0.205189,43286.0,43282.0,0.00011]
[1641421456793,0.005189,43283.0,43282.0,0.00011]
[1641421456991,0.005189,43283.0,43278.0,0.00011]
[1641421456992,0.005189,43283.0,43281.0,0.00011]
[1641421457192,0.005189,43282.0,43281.0,0.00011]
[1641421457392,0.15901294,43285.0,43281.0,0.00011]
[1641421457393,0.115602,43283.0,43281.0,0.00011]
[1641421457591,0.115602,43283.0,43279.0,0.00022]
[1641421457791,0.215602,43283.0,43279.0,0.00022]
[1641421457994,0.00640056,43281.0,43274.0,0.00022]
[1641421458191,0.005079,43277.0,43274.0,0.00022]
[1641421458444,0.004999,43275.0,43274.0,0.45898992]
[1641421458638,0.057809,43276.0,43275.0,0.00011]
[1641421460240,0.287809,43276.0,43275.0,0.00011]
[1641421460443,0.290809,43276.0,43275.0,0.00311]
[1641421461442,0.233,43276.0,43275.0,0.00311]
[1641421461641,0.233,43276.0,43275.0,0.00011]
[1641421461642,0.23,43276.0,43275.0,0.00011]
[1641421461842,0.28,43276.0,43275.0,6.923e-05]
[1641421462042,0.004999,43272.0,43271.0,0.34917587]
[1641421462472,0.112812,43272.0,43271.0,0.34917587]
[1641421462969,0.057813,43272.0,43271.0,0.70096398]
[1641421463168,0.057813,43272.0,43271.0,0.34917587]
[1641421464170,0.007813,43272.0,43271.0,0.34917587]
[1641421464372,0.010813,43272.0,43271.0,0.35217587]
[1641421464871,0.010813,43272.0,43271.0,0.35228137]
[1641421465273,0.003,43272.0,43271.0,0.35228137]
[1641421465475,0.003,43272.0,43271.0,0.35348846]
[1641421465673,0.23,43276.0,43271.0,0.35048846]
[1641421465921,0.23,43276.0,43275.0,0.31907161]
[1641421466124,0.23,43276.0,43272.0,0.48326275]
[1641421466323,0.057795,43275.0,43272.0,0.48326275]
[1641421466522,0.233,43276.0,43274.0,0.00124611]
[1641421467122,0.233,43276.0,43272.0,0.48326275]
[1641421467523,0.233,43276.0,43272.0,0.48376205]
[1641421467724,0.287795,43276.0,43272.0,0.48376205]
[1641421468423,0.291595,43276.0,43274.0,0.32517615]
[1641421468629,0.2338,43276.0,43275.0,0.00127958]
[1641421468825,0.2107,43276.0,43275.0,0.00127958]
[1641421469227,0.2107,43276.0,43274.0,0.32517615]
[1641421469426,0.2107,43276.0,43274.0,0.38296091]
[1641421469692,0.2067,43276.0,43274.0,0.32517615]
[1641421469885,0.2067,43276.0,43274.0,0.32646251]
[1641421470290,0.0001,43290.0,43275.0,0.72115596]
[1641421470492,0.0001,43290.0,43287.0,0.00126972]
[1641421470888,0.0001,43290.0,43285.0,0.00124208]
[1641421471087,0.0001,43290.0,43288.0,0.00124557]
[1641421471293,0.0001,43290.0,43289.0,0.6310395]
[1641421472288,0.0001,43290.0,43289.0,1.0024155]
[1641421472489,0.0011,43290.0,43289.0,1.38112329]
[1641421472689,0.0001,43300.0,43298.0,0.30994619]
[1641421472889,0.0001,43300.0,43293.0,0.00123704]
[1641421473426,0.057863,43300.0,43291.0,0.00120446]
[1641421474429,0.059863,43300.0,43291.0,0.01620446]
[1641421474629,0.059863,43300.0,43299.0,0.38995198]
[1641421475330,0.0021,43300.0,43299.0,0.38995198]
[1641421475530,0.05776,43302.0,43299.0,0.38995198]
[1641421476433,0.05876,43302.0,43299.0,0.39395198]
[1641421477480,0.05876,43302.0,43299.0,0.004]
[1641421477679,0.05876,43302.0,43289.0,0.3207315]
[1641421477680,0.004999,43300.0,43289.0,0.3207315]
[1641421477877,0.115538,43302.0,43279.0,0.00122204]
[1641421477878,0.057782,43295.0,43279.0,0.00122204]
[1641421478478,0.057782,43295.0,43290.0,0.00047895]
[1641421478678,0.004999,43294.0,43290.0,0.00047895]
[1641421478984,0.6491132,43291.0,43279.0,0.02722204]
[1641421479180,0.7491132,43291.0,43290.0,0.00010886]
[1641421479380,1.0041122,43291.0,43290.0,0.00010886]
[1641421479579,0.00126801,43288.0,43271.0,0.34620694]
[1641421479779,0.00126801,43288.0,43271.0,0.0001055]
[1641421479780,0.057801,43286.0,43271.0,0.0001055]
[1641421479981,0.48064839,43276.0,43275.0,0.45775243]
[1641421480181,0.58064839,43276.0,43275.0,0.45775243]
[1641421480381,0.58864739,43276.0,43275.0,0.45875243]
[1641421480578,0.107999,43276.0,43275.0,0.45875243]
[1641421480779,0.160808,43276.0,43275.0,0.45875243]
[1641421481030,0.060808,43276.0,43275.0,0.45875243]
[1641421481431,0.060808,43276.0,43275.0,1.07315128]
[1641421481632,0.057808,43276.0,43275.0,1.07215128]
[1641421482431,0.060808,43276.0,43275.0,1.07815128]
[1641421482628,0.060808,43276.0,43275.0,0.46375243]
[1641421483733,0.057808,43276.0,43275.0,0.45775243]
[1641421483930,0.1,43283.0,43275.0,0.45775243]
[1641421483931,0.057791,43279.0,43275.0,0.45775243]
[1641421484533,0.057791,43279.0,43275.0,0.47275243]
[1641421484778,0.057791,43279.0,43276.0,0.257771]
[1641421485180,0.057791,43279.0,43275.0,0.47275243]
[1641421485376,0.052791,43279.0,43275.0,0.47275243]
[1641421485778,0.052791,43279.0,43275.0,0.45775243]
[1641421486379,0.055791,43279.0,43275.0,0.47575243]
[1641421487180,0.055791,43279.0,43275.0,0.47586083]
[1641421487679,0.052791,43279.0,43275.0,0.45786083]
[1641421487882,0.252791,43279.0,43275.0,0.45345955]
[1641421488525,0.254791,43279.0,43275.0,0.47245955]
[1641421489227,0.254791,43279.0,43276.0,0.00044646]
[1641421489435,0.254791,43279.0,43275.0,0.0191084]
[1641421489436,0.00120254,43277.0,43275.0,0.0191084]
[1641421489728,1.47002371,43276.0,43271.0,0.0001055]
[1641421489931,0.00623361,43272.0,43270.0,0.00044]
[1641421490140,0.00623361,43272.0,43249.0,0.00022]
[1641421490141,0.00121725,43260.0,43249.0,0.00022]
[1641421490531,0.004999,43259.0,43249.0,0.00022]
[1641421490726,0.44661034,43260.0,43249.0,0.00022]
[1641421490727,0.00622654,43255.0,43249.0,0.00022]
[1641421491130,0.004999,43251.0,43245.0,0.36222993]
[1641421491330,0.20122754,43255.0,43245.0,0.00011]
[1641421491331,0.004999,43248.0,43245.0,0.00011]
[1641421491535,0.004999,43248.0,43242.0,0.00011]
[1641421491730,0.004999,43248.0,43233.0,0.00022]
[1641421491731,0.115716,43244.0,43233.0,0.00022]
[1641421491934,0.00121076,43240.0,43233.0,0.00022]
[1641421492186,0.65408974,43239.0,43233.0,0.00022]
[1641421492377,0.65408974,43239.0,43238.0,0.38907222]
[1641421492577,0.75408974,43239.0,43238.0,0.38907222]
[1641421492778,0.004999,43239.0,43238.0,0.38907222]
[1641421492979,0.1,43239.0,43238.0,0.38907222]
[1641421493177,0.104999,43239.0,43238.0,0.38907222]
[1641421493379,0.09722528,43239.0,43238.0,0.38907222]
[1641421493580,0.09222628,43239.0,43238.0,0.38907222]
[1641421493781,0.09222628,43239.0,43238.0,0.99601214]
[1641421493980,0.05907176,43240.0,43238.0,0.99601214]
[1641421493981,0.05907176,43240.0,43238.0,0.91011214]
[1641421494179,0.057861,43240.0,43238.0,0.91011214]
[1641421494585,0.061861,43240.0,43238.0,0.91011214]
[1641421495481,0.004,43240.0,43238.0,0.91011214]
[1641421495679,0.004,43240.0,43239.0,0.371376]
[1641421495929,0.01349922,43246.0,43240.0,0.371376]
[1641421496129,0.01349922,43246.0,43238.0,0.91011214]
[1641421496330,0.01349922,43246.0,43245.0,0.30343866]
[1641421496532,0.00121388,43252.0,43245.0,0.30343866]
[1641421496731,0.115652,43258.0,43245.0,0.30343866]
[1641421496934,0.23259661,43280.0,43250.0,0.00121935]
[1641421496935,0.00127464,43264.0,43250.0,0.00121935]
[1641421497139,0.5,43271.0,43263.0,0.00120815]
[1641421497335,0.004999,43270.0,43264.0,0.32482817]
[1641421497535,0.057806,43271.0,43267.0,0.5159495]
[1641421497735,0.4,43279.0,43275.0,0.4219382]
[1641421497934,0.004999,43276.0,43275.0,0.4219382]
[1641421498531,0.009999,43276.0,43275.0,0.4219382]
[1641421498731,0.067812,43276.0,43275.0,0.4219382]
[1641421499531,0.067812,43276.0,43275.0,0.42234551]
[1641421500282,0.59399975,43276.0,43275.0,0.00040731]
[1641421500483,1.19538372,43276.0,43268.0,0.01349807]
[1641421500679,0.25911377,43269.0,43268.0,0.01349807]
[1641421500881,0.62263458,43269.0,43242.0,0.05783321]
[1641421501082,0.62263458,43269.0,43241.0,0.0012301]
[1641421501083,0.56519978,43269.0,43241.0,0.0012301]
[1641421501281,0.00122266,43255.0,43239.0,0.73107438]
[1641421501484,0.173527,43257.0,43244.0,0.00123026]
[1641421501682,0.173527,43257.0,43248.0,0.30669347]
[1641421501879,0.115676,43253.0,43248.0,0.30669347]
[1641421502080,0.115676,43253.0,43249.0,0.32958857]
[1641421502285,0.004999,43250.0,43240.0,0.00120614]
[1641421502486,0.004999,43250.0,43230.0,0.24619614]
[1641421502681,0.00122714,43250.0,43228.0,0.42170042]
[1641421502881,0.057848,43240.0,43228.0,0.42170042]
[1641421503081,0.057848,43240.0,43233.0,0.05784551]
[1641421503281,0.057848,43240.0,43237.0,0.00010976]
[1641421504531,0.060848,43240.0,43237.0,0.00010976]
[1641421505433,0.003,43240.0,43237.0,0.00010976]
[1641421505834,0.1,43243.0,43241.0,0.40115082]
[1641421506134,0.00124989,43244.0,43241.0,0.40115082]
[1641421506536,0.060849,43243.0,43241.0,0.40115082]
[1641421507190,0.060849,43243.0,43242.0,0.51906909]
[1641421507379,0.060849,43243.0,43241.0,0.40115082]
[1641421507779,0.057849,43243.0,43241.0,0.40115082]
[1641421508582,0.062849,43243.0,43241.0,0.40115082]
[1641421508980,0.062849,43243.0,43237.0,0.00010976]
[1641421508981,0.06406284,43243.0,43237.0,0.00010976]
[1641421509383,0.0590952,43238.0,43237.0,0.00010976]
[1641421509581,0.0640942,43238.0,43237.0,0.00010976]
[1641421510386,0.057863,43235.0,43232.0,0.40138991]
[1641421510582,0.057863,43235.0,43229.0,0.00033]
[1641421511228,0.004999,43234.0,43230.0,0.00010978]
[1641421511428,0.00622862,43231.0,43230.0,0.00010978]
[1641421511633,0.2,43230.0,43229.0,0.00033]
[1641421511829,0.56117698,43230.0,43229.0,0.00033]
[1641421512031,0.56117698,43230.0,43220.0,0.20044]
[1641421512032,0.004999,43226.0,43220.0,0.20044]
[1641421512234,0.00125044,43227.0,43220.0,0.20044]
[1641421512434,0.06413059,43223.0,43220.0,0.20044]
[1641421512631,0.06413059,43223.0,43216.0,0.0139394]
[1641421512632,0.2,43221.0,43216.0,0.0139394]
[1641421512834,0.2,43219.0,43216.0,0.0139394]
[1641421513030,1.53444728,43219.0,43217.0,0.537628]
[1641421513228,0.20626629,43218.0,43217.0,0.537628]
[1641421513431,0.26417329,43218.0,43217.0,0.437728]
[1641421513629,0.004999,43214.0,43204.0,0.00022]
[1641421513833,0.004999,43214.0,43189.0,0.00044]
[1641421513834,0.00781934,43209.0,43189.0,0.00044]
[1641421514031,0.004999,43205.0,43194.0,0.00044]
[1641421514331,0.004999,43205.0,43189.0,0.00044]
[1641421514332,0.004999,43201.0,43189.0,0.00044]
[1641421514528,1.410999,43197.0,43192.0,0.41859888]
[1641421514789,0.004999,43196.0,43189.0,0.00044]
[1641421514990,0.004999,43196.0,43182.0,0.00124489]
[1641421515188,0.004999,43196.0,43177.0,0.66192319]
[1641421515189,0.00120836,43192.0,43177.0,0.66192319]
[1641421515587,0.11585,43190.0,43180.0,0.75835967]
[1641421515789,0.11585,43190.0,43185.0,0.00011]
[1641421515989,0.11585,43190.0,43188.0,0.41878457]
[1641421516188,0.07121649,43192.0,43188.0,0.41878457]
[1641421516387,0.00120836,43192.0,43188.0,0.33878457]
[1641421516587,0.001,43190.0,43188.0,0.33878457]
[1641421516988,0.001,43190.0,43189.0,0.65670159]
[1641421517188,0.001,43190.0,43189.0,0.65170159]
[1641421517891,0.07124103,43200.0,43189.0,0.65170159]
[1641421518088,0.115802,43208.0,43192.0,0.05790527]
[1641421518288,0.00127772,43207.0,43197.0,0.29381941]
[1641421518526,0.003,43200.0,43197.0,0.29381941]
[1641421518726,0.003,43200.0,43199.0,0.60318824]
[1641421518925,0.003,43200.0,43199.0,0.97518924]
[1641421519127,0.00127772,43207.0,43199.0,0.372001]
[1641421519327,0.009903,43206.0,43197.0,0.11589229]
[1641421519526,0.00127772,43207.0,43197.0,0.05799929]
[1641421519726,0.009903,43206.0,43200.0,0.42730373]
[1641421519931,0.00127772,43207.0,43200.0,0.42730373]
[1641421520125,0.50194776,43201.0,43199.0,0.00040513]
[1641421520327,0.009903,43200.0,43199.0,0.00040513]
[1641421520530,0.07991113,43200.0,43199.0,0.00040513]
[1641421521127,0.07991113,43200.0,43199.0,0.43302602]
[1641421521328,0.07000813,43200.0,43199.0,0.43302602]
[1641421521729,0.12000813,43200.0,43199.0,0.43302602]
[1641421521928,0.07000813,43200.0,43199.0,0.43302602]
[1641421522173,0.251132,43207.0,43199.0,0.43302602]
[1641421522475,0.07000813,43202.0,43199.0,0.43302602]
[1641421522675,0.251132,43207.0,43199.0,0.49492469]
[1641421522676,0.003,43200.0,43199.0,0.49492469]
[1641421523276,0.003,43200.0,43199.0,0.49143769]
[1641421523477,0.0001,43200.0,43199.0,0.48504376]
[1641421523875,0.0147322,43207.0,43202.0,0.05789422]
[1641421524277,0.107899,43206.0,43199.0,0.43302602]
[1641421524476,0.07000813,43200.0,43199.0,0.43302602]
[1641421524676,0.07000813,43203.0,43199.0,0.43302602]
[1641421524876,0.0197322,43207.0,43199.0,0.43302602]
[1641421525078,0.07000813,43203.0,43199.0,0.43302602]
[1641421525277,0.07000813,43202.0,43199.0,0.43302602]
[1641421525476,0.07000813,43200.0,43199.0,0.43302602]
[1641421526721,0.07300813,43200.0,43199.0,0.43602602]
[1641421527724,0.06843951,43200.0,43199.0,0.43302602]
[1641421528526,0.07343951,43200.0,43199.0,0.00040513]
[1641421528728,0.08456772,43200.0,43199.0,0.00040513]
[1641421529132,0.14247472,43200.0,43199.0,0.00040513]
[1641421529528,0.24247472,43200.0,43199.0,0.00040513]
[1641421529779,0.14338139,43200.0,43199.0,0.00040513]
[1641421529976,0.14338139,43200.0,43197.0,0.00010946]
[1641421529977,0.47643238,43199.0,43197.0,0.00010946]
[1641421530283,0.01115895,43198.0,43197.0,0.00010946]
[1641421530480,0.01115895,43198.0,43185.0,0.00011]
[1641421530481,0.00129929,43186.0,43185.0,0.00011]
[1641421530677,0.0697388,43186.0,43185.0,0.00011]
[1641421530882,0.0796418,43186.0,43185.0,0.00011]
[1641421531079,0.0697388,43186.0,43185.0,0.00011]
[1641421531577,0.1276638,43186.0,43185.0,0.00011]
[1641421532180,0.06843951,43186.0,43185.0,0.00011]
[1641421532577,0.07143951,43186.0,43185.0,0.00611]
[1641421532976,0.30143951,43186.0,43185.0,0.00611]
[1641421533628,0.01475492,43193.0,43185.0,0.00611]
[1641421533825,0.01475492,43193.0,43185.0,0.00011]
[1641421534227,0.00125438,43193.0,43188.0,0.05779957]
[1641421534426,0.1,43198.0,43192.0,0.60531431]
[1641421534628,0.1,43198.0,43193.0,0.4585823]
[1641421534828,0.00122492,43200.0,43193.0,0.4585823]
[1641421535230,0.00122492,43200.0,43194.0,0.00010781]
[1641421535428,0.115808,43205.0,43194.0,0.00010781]
[1641421535629,0.115808,43205.0,43196.0,0.11579971]
[1641421535830,0.115808,43205.0,43199.0,0.63757355]
[1641421536040,0.00121577,43206.0,43199.0,0.63757355]
[1641421536041,0.057901,43203.0,43199.0,0.63757355]
[1641421536429,0.00121577,43206.0,43199.0,0.69547414]
[1641421536630,0.006,43203.0,43199.0,0.63757355]
[1641421536929,0.006,43203.0,43200.0,0.32709999]
[1641421537386,0.006,43203.0,43200.0,0.44288759]
[1641421537585,0.006,43203.0,43200.0,0.77702329]
[1641421538385,0.00122215,43207.0,43200.0,0.77702329]
[1641421538590,0.002,43203.0,43202.0,0.05789664]
[1641421538787,0.002,43203.0,43200.0,0.33139999]
[1641421539888,0.2499,43213.0,43200.0,0.33139999]
[1641421539889,0.53618369,43211.0,43200.0,0.32739999]
[1641421540089,0.00122754,43209.0,43207.0,0.41936798]
[1641421540489,0.2499,43213.0,43207.0,0.41936798]
[1641421540490,0.00120799,43208.0,43207.0,0.41936798]
[1641421540692,0.05910899,43208.0,43204.0,0.0135]
[1641421540935,0.009903,43205.0,43204.0,0.0135]
[1641421541727,0.009903,43205.0,43204.0,0.37839175]
[1641421541926,0.009903,43205.0,43204.0,0.37339175]
[1641421542627,0.072903,43205.0,43204.0,0.37339175]
[1641421542829,0.272903,43205.0,43204.0,0.0085]
[1641421543027,0.322903,43205.0,43204.0,0.0085]
[1641421543229,0.072903,43205.0,43204.0,0.0085]
[1641421543427,0.372903,43205.0,43204.0,0.0085]
[1641421543733,0.372903,43205.0,43202.0,0.00010942]
[1641421543930,1.415903,43203.0,43202.0,0.00010942]
[1641421544130,1.415903,43203.0,43200.0,0.0003]
[1641421544131,1.565903,43203.0,43200.0,0.0003]
[1641421544329,0.209903,43201.0,43200.0,0.0003]
[1641421544530,0.259903,43201.0,43200.0,0.0003]
[1641421544784,1.46712972,43201.0,43200.0,0.005441]
[1641421544980,0.06112972,43201.0,43200.0,0.005441]
[1641421545183,0.21904772,43201.0,43200.0,0.005441]
[1641421545382,0.20914472,43201.0,43200.0,0.005441]
[1641421546185,0.10914472,43201.0,43200.0,0.005441]
[1641421546386,0.11904772,43201.0,43200.0,0.005441]
[1641421546586,0.12404772,43201.0,43200.0,0.005441]
[1641421546986,0.12404772,43201.0,43200.0,0.0042947]
[1641421547189,0.112918,43201.0,43200.0,0.0042947]
[1641421547386,0.062918,43201.0,43200.0,0.0042947]
[1641421547785,0.005,43201.0,43200.0,0.0042947]
[1641421547987,0.117893,43205.0,43199.0,0.45498829]
[1641421548185,0.117893,43205.0,43203.0,0.62487339]
[1641421548629,0.11168033,43201.0,43199.0,0.45798829]
[1641421548829,0.16958033,43201.0,43199.0,0.45798829]
[1641421549829,0.16958033,43201.0,43199.0,0.45498829]
[1641421550029,0.21958033,43201.0,43199.0,0.45498829]
[1641421550237,0.16958033,43201.0,43199.0,0.45498829]
[1641421550430,0.15958033,43201.0,43199.0,0.51288582]
[1641421550639,0.001,43201.0,43199.0,0.46798829]
[1641421551130,0.001,43201.0,43199.0,0.80209372]
[1641421551331,0.001,43201.0,43199.0,0.46798829]
[1641421551540,0.0589,43201.0,43200.0,0.62066516]
[1641421551932,0.05913583,43201.0,43200.0,0.2212]
[1641421552380,0.0579,43201.0,43200.0,0.2212]
[1641421552579,0.0599,43201.0,43200.0,0.2252]
[1641421553580,0.05833117,43201.0,43200.0,0.2252]
[1641421553781,0.06823417,43201.0,43200.0,0.2252]
[1641421553982,0.06623417,43201.0,43200.0,0.2212]
[1641421554381,0.06623417,43201.0,43200.0,0.2162]
[1641421554582,0.07123417,43201.0,43200.0,0.2162]
[1641421554786,0.07000598,43201.0,43200.0,0.2162]
[1641421555182,0.44365098,43202.0,43200.0,0.2162]
[1641421555583,0.19375098,43202.0,43200.0,0.60536]
[1641421555782,0.0579,43201.0,43200.0,0.60536]
[1641421556229,0.0579,43201.0,43200.0,1.19596548]
[1641421556630,0.0609,43201.0,43200.0,1.25586264]
[1641421557432,0.0609,43201.0,43200.0,1.19653578]